[Event "Titled Tuesday Blitz January 25 2022"]
[White "Obolenskikh, Dmitry"]
[Black "Nestorovic, Nikola"]
[WhiteFideId "4156013"]
[BlackFideId "934526"]
[WhiteElo "2512"]
[BlackElo "2411"]
[Result "1/2-1/2"]
[Round "03"]
[TimeControl "180+1"]
[Date "2022.01.26"]
[WhiteClock "0:00:22"]
[BlackClock "0:00:06"]

1. Nf3 {[%clk 0:03:00]}  d5 {[%clk 0:02:52]} 2. e3 {[%clk 0:02:58]}  Nf6 {[%clk 0:02:51]} 3. c4 {[%clk 0:02:59]}  e6 {[%clk 0:02:49]} 4. b3 {[%clk 0:02:58]}  b6 {[%clk 0:02:44]} 5. Bb2 {[%clk 0:02:57]}  Bb7 {[%clk 0:02:45]} 6. Nc3 {[%clk 0:02:57]}  Nbd7 {[%clk 0:02:44]} 7. cxd5 {[%clk 0:02:57]}  exd5 {[%clk 0:02:44]} 8. d4 {[%clk 0:02:57]}  a6 {[%clk 0:02:44]} 9. Be2 {[%clk 0:02:56]}  Bd6 {[%clk 0:02:44]} 10. O-O {[%clk 0:02:57]}  O-O {[%clk 0:02:45]} 11. Rc1 {[%clk 0:02:57]}  Qe7 {[%clk 0:02:41]} 12. Rc2 {[%clk 0:02:57]}  Ne4 {[%clk 0:02:32]} 13. Qc1 {[%clk 0:02:56]}  f5 {[%clk 0:02:29]} 14. g3 {[%clk 0:02:56]}  g5 {[%clk 0:02:21]} 15. Re1 {[%clk 0:02:54]}  Rae8 {[%clk 0:02:15]} 16. Bf1 {[%clk 0:02:49]}  h5 {[%clk 0:02:08]} 17. Bg2 {[%clk 0:02:45]}  g4 {[%clk 0:02:04]} 18. Nh4 {[%clk 0:02:42]}  Qg7 {[%clk 0:01:55]} 19. Ba3 {[%clk 0:02:37]}  Bxa3 {[%clk 0:01:38]} 20. Qxa3 {[%clk 0:02:36]}  c6 {[%clk 0:01:36]} 21. Ne2 {[%clk 0:02:30]}  Qf7 {[%clk 0:01:27]} 22. Nf4 {[%clk 0:02:25]}  c5 {[%clk 0:01:16]} 23. dxc5 {[%clk 0:02:18]}  bxc5 {[%clk 0:01:17]} 24. b4 {[%clk 0:02:12]}  c4 {[%clk 0:01:10]} 25. Rd1 {[%clk 0:02:11]}  Ne5 {[%clk 0:01:01]} 26. Qa5 {[%clk 0:01:58]}  Rd8 {[%clk 0:01:01]} 27. Qb6 {[%clk 0:01:44]}  Rd6 {[%clk 0:01:00]} 28. Qd4 {[%clk 0:01:39]}  Re8 {[%clk 0:01:00]} 29. a4 {[%clk 0:01:36]}  Bc6 {[%clk 0:00:54]} 30. Ra2 {[%clk 0:01:26]}  Qd7 {[%clk 0:00:51]} 31. b5 {[%clk 0:01:15]}  axb5 {[%clk 0:00:52]} 32. axb5 {[%clk 0:01:15]}  Bxb5 {[%clk 0:00:50]} 33. Ra7 {[%clk 0:01:15]}  Qd8 {[%clk 0:00:43]} 34. Nxf5 {[%clk 0:01:10]}  Rd7 {[%clk 0:00:34]} 35. Nxh5 {[%clk 0:00:47]}  Rxa7 {[%clk 0:00:19]} 36. Qxa7 {[%clk 0:00:46]}  Qg5 {[%clk 0:00:20]} 37. Bxe4 {[%clk 0:00:38]}  dxe4 {[%clk 0:00:18]} 38. Qg7+ {[%clk 0:00:30]}  Qxg7 {[%clk 0:00:17]} 39. Nfxg7 {[%clk 0:00:30]}  Rc8 {[%clk 0:00:15]} 40. Nf5 {[%clk 0:00:29]}  Kf8 {[%clk 0:00:13]} 41. Nf4 {[%clk 0:00:27]}  c3 {[%clk 0:00:13]} 42. Ne6+ {[%clk 0:00:26]}  Kf7 {[%clk 0:00:10]} 43. Nd6+ {[%clk 0:00:26]}  Kxe6 {[%clk 0:00:11]} 44. Nxc8 {[%clk 0:00:26]}  c2 {[%clk 0:00:11]} 45. Rc1 {[%clk 0:00:26]}  Bd3 {[%clk 0:00:11]} 46. Nb6 {[%clk 0:00:26]}  Kd6 {[%clk 0:00:10]} 47. Kg2 {[%clk 0:00:20]}  Kc5 {[%clk 0:00:08]} 48. Nc8 {[%clk 0:00:20]}  Kc4 {[%clk 0:00:08]} 49. h4 {[%clk 0:00:20]}  gxh3+ {[%clk 0:00:08]} 50. Kxh3 {[%clk 0:00:20]}  Kc3 {[%clk 0:00:09]} 51. Nd6 {[%clk 0:00:20]}  Kd2 {[%clk 0:00:09]} 52. Rxc2+ {[%clk 0:00:21]}  Kxc2 {[%clk 0:00:09]} 53. g4 {[%clk 0:00:21]}  Kd2 {[%clk 0:00:09]} 54. Kg3 {[%clk 0:00:21]}  Ke2 {[%clk 0:00:09]} 55. g5 {[%clk 0:00:21]}  Ng6 {[%clk 0:00:10]} 56. Nf5 {[%clk 0:00:21]}  Bc4 {[%clk 0:00:07]} 57. Nd6 {[%clk 0:00:21]}  Bd5 {[%clk 0:00:07]} 58. Kg4 {[%clk 0:00:20]}  Kxf2 {[%clk 0:00:08]} 59. Kf5 {[%clk 0:00:21]}  Nh4+ {[%clk 0:00:08]} 60. Ke5 {[%clk 0:00:21]}  Bc6 {[%clk 0:00:04]} 61. Nxe4+ {[%clk 0:00:21]}  Bxe4 {[%clk 0:00:04]} 62. Kxe4 {[%clk 0:00:21]}  Kg3 {[%clk 0:00:04]} 63. Ke5 {[%clk 0:00:21]}  Kg4 {[%clk 0:00:05]} 64. Kf6 {[%clk 0:00:20]}  Kf3 {[%clk 0:00:06]} 65. g6 {[%clk 0:00:21]}  Nxg6 {[%clk 0:00:05]} 66. Kxg6 {[%clk 0:00:22]}  Kxe3 {[%clk 0:00:06]} 1/2-1/2


[Site "https://www.chess.com"]

[Event "Titled Tuesday Blitz January 25 2022"]
[White "Pap, Gyula"]
[Black "Vovk, Orest"]
[WhiteFideId "725323"]
[BlackFideId "14113490"]
[WhiteElo "2553"]
[BlackElo "2203"]
[Result "1-0"]
[Round "03"]
[TimeControl "180+1"]
[Date "2022.01.26"]
[WhiteClock "0:00:02"]
[BlackClock "0:00:04"]

1. e4 {[%clk 0:03:00]}  g5 {[%clk 0:02:57]} 2. d4 {[%clk 0:02:53]}  h6 {[%clk 0:02:57]} 3. h4 {[%clk 0:02:52]}  g4 {[%clk 0:02:57]} 4. h5 {[%clk 0:02:45]}  Bg7 {[%clk 0:02:56]} 5. c3 {[%clk 0:02:43]}  d5 {[%clk 0:02:50]} 6. Bd3 {[%clk 0:02:32]}  dxe4 {[%clk 0:02:48]} 7. Bxe4 {[%clk 0:02:32]}  Nf6 {[%clk 0:02:48]} 8. Qe2 {[%clk 0:02:08]}  Nxe4 {[%clk 0:02:47]} 9. Qxe4 {[%clk 0:02:09]}  c6 {[%clk 0:02:46]} 10. Ne2 {[%clk 0:02:06]}  Qd5 {[%clk 0:02:46]} 11. Nd2 {[%clk 0:02:03]}  Qxe4 {[%clk 0:02:44]} 12. Nxe4 {[%clk 0:02:03]}  Nd7 {[%clk 0:02:44]} 13. Bd2 {[%clk 0:01:49]}  Nf6 {[%clk 0:02:44]} 14. Nxf6+ {[%clk 0:01:46]}  Bxf6 {[%clk 0:02:44]} 15. Ng3 {[%clk 0:01:47]}  Bg5 {[%clk 0:02:31]} 16. O-O-O {[%clk 0:01:39]}  f6 {[%clk 0:02:20]} 17. f4 {[%clk 0:01:32]}  gxf3 {[%clk 0:02:19]} 18. gxf3 {[%clk 0:01:33]}  Bxd2+ {[%clk 0:02:15]} 19. Kxd2 {[%clk 0:01:32]}  Rg8 {[%clk 0:02:13]} 20. Rhg1 {[%clk 0:01:30]}  Kf7 {[%clk 0:02:12]} 21. Ke3 {[%clk 0:01:23]}  Be6 {[%clk 0:02:11]} 22. a3 {[%clk 0:00:44]}  Rg5 {[%clk 0:02:03]} 23. Kf2 {[%clk 0:00:27]}  Rag8 {[%clk 0:01:55]} 24. Rde1 {[%clk 0:00:27]}  Bd5 {[%clk 0:01:47]} 25. Ne2 {[%clk 0:00:24]}  Rxh5 {[%clk 0:01:43]} 26. Rxg8 {[%clk 0:00:23]}  Kxg8 {[%clk 0:01:43]} 27. Nf4 {[%clk 0:00:23]}  Rh2+ {[%clk 0:01:33]} 28. Kg3 {[%clk 0:00:24]}  Rxb2 {[%clk 0:01:31]} 29. Rxe7 {[%clk 0:00:19]}  Rb3 {[%clk 0:01:29]} 30. Nxd5 {[%clk 0:00:19]}  cxd5 {[%clk 0:01:28]} 31. a4 {[%clk 0:00:18]}  a5 {[%clk 0:01:20]} 32. Rd7 {[%clk 0:00:16]}  Rxc3 {[%clk 0:01:17]} 33. Rxd5 {[%clk 0:00:16]}  Rc4 {[%clk 0:01:12]} 34. Rxa5 {[%clk 0:00:14]}  Rxd4 {[%clk 0:01:12]} 35. Rb5 {[%clk 0:00:14]}  Rd7 {[%clk 0:01:11]} 36. Kg4 {[%clk 0:00:11]}  Kg7 {[%clk 0:01:09]} 37. f4 {[%clk 0:00:12]}  Kg6 {[%clk 0:01:05]} 38. f5+ {[%clk 0:00:12]}  Kg7 {[%clk 0:01:05]} 39. Kh5 {[%clk 0:00:12]}  Re7 {[%clk 0:01:02]} 40. a5 {[%clk 0:00:11]}  Rd7 {[%clk 0:01:00]} 41. Rb4 {[%clk 0:00:11]}  Rc7 {[%clk 0:00:53]} 42. Rg4+ {[%clk 0:00:05]}  Kf7 {[%clk 0:00:53]} 43. Kxh6 {[%clk 0:00:05]}  Rc5 {[%clk 0:00:46]} 44. Rg7+ {[%clk 0:00:05]}  Kf8 {[%clk 0:00:36]} 45. Rxb7 {[%clk 0:00:05]}  Rxa5 {[%clk 0:00:26]} 46. Kg6 {[%clk 0:00:05]}  Ra6 {[%clk 0:00:25]} 47. Rf7+ {[%clk 0:00:03]}  Kg8 {[%clk 0:00:24]} 48. Rg7+ {[%clk 0:00:03]}  Kf8 {[%clk 0:00:24]} 49. Rf7+ {[%clk 0:00:04]}  Kg8 {[%clk 0:00:24]} 50. Rxf6 {[%clk 0:00:04]}  Ra1 {[%clk 0:00:10]} 51. Rb6 {[%clk 0:00:04]}  Rg1+ {[%clk 0:00:08]} 52. Kf6 {[%clk 0:00:04]}  Ra1 {[%clk 0:00:08]} 53. Rb8+ {[%clk 0:00:03]}  Kh7 {[%clk 0:00:08]} 54. Rb7+ {[%clk 0:00:04]}  Kg8 {[%clk 0:00:08]} 55. Rb8+ {[%clk 0:00:04]}  Kh7 {[%clk 0:00:09]} 56. Re8 {[%clk 0:00:04]}  Ra6+ {[%clk 0:00:06]} 57. Re6 {[%clk 0:00:04]}  Ra8 {[%clk 0:00:06]} 58. Kf7 {[%clk 0:00:04]}  Ra7+ {[%clk 0:00:06]} 59. Re7 {[%clk 0:00:04]}  Ra5 {[%clk 0:00:05]} 60. f6 {[%clk 0:00:05]}  Ra6 {[%clk 0:00:04]} 61. Rd7 {[%clk 0:00:03]}  Rb6 {[%clk 0:00:04]} 62. Ke7 {[%clk 0:00:02]} 1-0


[Site "https://www.chess.com"]

[Event "Titled Tuesday Blitz January 25 2022"]
[White "Prieto Aranguren, Alain"]
[Black "Xiong, Jeffery"]
[WhiteFideId "2268906"]
[BlackFideId "2047640"]
[WhiteElo "2235"]
[BlackElo "2727"]
[Result "0-1"]
[Round "03"]
[TimeControl "180+1"]
[Date "2022.01.26"]
[WhiteClock "0:01:09"]
[BlackClock "0:00:44"]

1. d4 {[%clk 0:03:00]}  g6 {[%clk 0:02:22]} 2. c4 {[%clk 0:02:57]}  Bg7 {[%clk 0:02:22]} 3. Nc3 {[%clk 0:02:57]}  d6 {[%clk 0:02:22]} 4. Nf3 {[%clk 0:02:56]}  e5 {[%clk 0:02:22]} 5. dxe5 {[%clk 0:02:55]}  dxe5 {[%clk 0:02:23]} 6. Qxd8+ {[%clk 0:02:54]}  Kxd8 {[%clk 0:02:24]} 7. Bg5+ {[%clk 0:02:54]}  f6 {[%clk 0:02:23]} 8. O-O-O+ {[%clk 0:02:54]}  Nd7 {[%clk 0:02:08]} 9. Bd2 {[%clk 0:02:53]}  c6 {[%clk 0:02:05]} 10. h3 {[%clk 0:02:52]}  Kc7 {[%clk 0:01:32]} 11. e3 {[%clk 0:02:52]}  Nc5 {[%clk 0:01:28]} 12. Be2 {[%clk 0:02:49]}  a5 {[%clk 0:01:26]} 13. Kb1 {[%clk 0:02:33]}  Bf5+ {[%clk 0:01:25]} 14. Ka1 {[%clk 0:02:33]}  a4 {[%clk 0:01:25]} 15. a3 {[%clk 0:02:23]}  Bc2 {[%clk 0:01:19]} 16. Bc1 {[%clk 0:02:17]}  Nb3+ {[%clk 0:01:16]} 17. Ka2 {[%clk 0:02:16]}  Bxd1 {[%clk 0:01:17]} 18. Rxd1 {[%clk 0:02:13]}  Nh6 {[%clk 0:01:03]} 19. e4 {[%clk 0:01:58]}  Nxc1+ {[%clk 0:01:02]} 20. Rxc1 {[%clk 0:01:58]}  Nf7 {[%clk 0:01:00]} 21. c5 {[%clk 0:01:53]}  Ra5 {[%clk 0:00:57]} 22. Nd1 {[%clk 0:01:48]}  Bh6 {[%clk 0:00:54]} 23. Rc4 {[%clk 0:01:43]}  Rha8 {[%clk 0:00:53]} 24. Nc3 {[%clk 0:01:39]}  Nd8 {[%clk 0:00:53]} 25. Bd1 {[%clk 0:01:32]}  Ne6 {[%clk 0:00:50]} 26. Rxa4 {[%clk 0:01:30]}  Rxa4 {[%clk 0:00:43]} 27. Nxa4 {[%clk 0:01:28]}  Rd8 {[%clk 0:00:44]} 28. Bb3 {[%clk 0:01:25]}  Nf4 {[%clk 0:00:44]} 29. g3 {[%clk 0:01:09]}  Nxh3 {[%clk 0:00:44]} 0-1


[Site "https://www.chess.com"]

[Event "Titled Tuesday Blitz January 25 2022"]
[White "Samunenkov, Ihor"]
[Black "Poliannikov, Danila"]
[WhiteFideId "14187086"]
[BlackFideId "30935245"]
[WhiteElo "2406"]
[BlackElo "2527"]
[Result "1/2-1/2"]
[Round "03"]
[TimeControl "180+1"]
[Date "2022.01.26"]
[WhiteClock "0:00:06"]
[BlackClock "0:00:07"]

1. d4 {[%clk 0:03:00]}  Nf6 {[%clk 0:03:00]} 2. c4 {[%clk 0:03:01]}  e6 {[%clk 0:02:57]} 3. Nc3 {[%clk 0:03:01]}  d5 {[%clk 0:02:55]} 4. cxd5 {[%clk 0:03:01]}  exd5 {[%clk 0:02:55]} 5. Bg5 {[%clk 0:03:02]}  Be7 {[%clk 0:02:55]} 6. e3 {[%clk 0:03:02]}  O-O {[%clk 0:02:56]} 7. Qc2 {[%clk 0:03:01]}  Nbd7 {[%clk 0:02:54]} 8. Bd3 {[%clk 0:03:00]}  c6 {[%clk 0:02:51]} 9. Nf3 {[%clk 0:02:57]}  Re8 {[%clk 0:02:51]} 10. O-O {[%clk 0:02:56]}  Nf8 {[%clk 0:02:51]} 11. h3 {[%clk 0:02:48]}  g6 {[%clk 0:02:49]} 12. Ne5 {[%clk 0:02:48]}  Ne6 {[%clk 0:02:48]} 13. f4 {[%clk 0:02:48]}  Ng7 {[%clk 0:02:34]} 14. g4 {[%clk 0:02:31]}  h5 {[%clk 0:02:02]} 15. Qg2 {[%clk 0:02:20]}  Ne6 {[%clk 0:01:30]} 16. Bxf6 {[%clk 0:02:16]}  Bxf6 {[%clk 0:01:31]} 17. gxh5 {[%clk 0:02:17]}  g5 {[%clk 0:01:14]} 18. fxg5 {[%clk 0:01:34]}  Bxe5 {[%clk 0:01:14]} 19. g6 {[%clk 0:01:34]}  Bf6 {[%clk 0:00:51]} 20. gxf7+ {[%clk 0:01:33]}  Kxf7 {[%clk 0:00:51]} 21. Qg6+ {[%clk 0:01:31]}  Ke7 {[%clk 0:00:52]} 22. Qxf6+ {[%clk 0:01:23]}  Kd7 {[%clk 0:00:51]} 23. Qxd8+ {[%clk 0:01:17]}  Nxd8 {[%clk 0:00:46]} 24. e4 {[%clk 0:01:12]}  dxe4 {[%clk 0:00:43]} 25. Nxe4 {[%clk 0:01:11]}  Kc7 {[%clk 0:00:41]} 26. Kh2 {[%clk 0:00:58]}  Ne6 {[%clk 0:00:41]} 27. Rf7+ {[%clk 0:00:53]}  Kb6 {[%clk 0:00:38]} 28. Nd6 {[%clk 0:00:50]}  Rd8 {[%clk 0:00:36]} 29. Nxc8+ {[%clk 0:00:22]}  Rdxc8 {[%clk 0:00:29]} 30. Bf5 {[%clk 0:00:22]}  Re8 {[%clk 0:00:29]} 31. Bxe6 {[%clk 0:00:08]}  Rxe6 {[%clk 0:00:30]} 32. Raf1 {[%clk 0:00:08]}  Rh8 {[%clk 0:00:24]} 33. Rd7 {[%clk 0:00:02]}  Rxh5 {[%clk 0:00:14]} 34. Rff7 {[%clk 0:00:02]}  Kb5 {[%clk 0:00:10]} 35. Rxb7+ {[%clk 0:00:02]}  Kc4 {[%clk 0:00:11]} 36. b3+ {[%clk 0:00:02]}  Kxd4 {[%clk 0:00:11]} 37. Rbd7+ {[%clk 0:00:02]}  Kc3 {[%clk 0:00:09]} 38. Rf3+ {[%clk 0:00:03]}  Kb4 {[%clk 0:00:07]} 39. Rd4+ {[%clk 0:00:03]}  Kc5 {[%clk 0:00:07]} 40. Rc4+ {[%clk 0:00:03]}  Kb5 {[%clk 0:00:08]} 41. h4 {[%clk 0:00:02]}  Re2+ {[%clk 0:00:07]} 42. Kh3 {[%clk 0:00:03]}  Rxa2 {[%clk 0:00:08]} 43. Kg4 {[%clk 0:00:03]}  Rh8 {[%clk 0:00:08]} 44. Rf5+ {[%clk 0:00:03]}  Kb6 {[%clk 0:00:07]} 45. Rf6 {[%clk 0:00:02]}  Rg2+ {[%clk 0:00:04]} 46. Kh3 {[%clk 0:00:02]}  Rb2 {[%clk 0:00:03]} 47. Rfxc6+ {[%clk 0:00:03]}  Kb5 {[%clk 0:00:03]} 48. R6c5+ {[%clk 0:00:03]}  Kb6 {[%clk 0:00:03]} 49. Rc6+ {[%clk 0:00:02]}  Kb5 {[%clk 0:00:03]} 50. R4c5+ {[%clk 0:00:02]}  Kb4 {[%clk 0:00:04]} 51. h5 {[%clk 0:00:02]}  Rxb3+ {[%clk 0:00:04]} 52. Kh4 {[%clk 0:00:03]}  Rb1 {[%clk 0:00:03]} 53. Rc4+ {[%clk 0:00:03]}  Kb5 {[%clk 0:00:04]} 54. R4c5+ {[%clk 0:00:04]}  Kb4 {[%clk 0:00:04]} 55. Rf5 {[%clk 0:00:04]}  Rh1+ {[%clk 0:00:04]} 56. Kg4 {[%clk 0:00:04]}  a5 {[%clk 0:00:03]} 57. Rb6+ {[%clk 0:00:03]}  Kc4 {[%clk 0:00:03]} 58. h6 {[%clk 0:00:04]}  R1xh6 {[%clk 0:00:02]} 59. Rf4+ {[%clk 0:00:03]}  Kd5 {[%clk 0:00:02]} 60. Rb5+ {[%clk 0:00:03]}  Kc6 {[%clk 0:00:02]} 61. Rxa5 {[%clk 0:00:03]}  Rg8+ {[%clk 0:00:03]} 62. Kf3 {[%clk 0:00:03]}  Rhg6 {[%clk 0:00:03]} 63. Rc4+ {[%clk 0:00:02]}  Kb6 {[%clk 0:00:03]} 64. Rf5 {[%clk 0:00:02]}  Rg3+ {[%clk 0:00:03]} 65. Ke2 {[%clk 0:00:02]}  Rg2+ {[%clk 0:00:04]} 66. Kd3 {[%clk 0:00:03]}  R2g3+ {[%clk 0:00:04]} 67. Kc2 {[%clk 0:00:03]}  Rg2+ {[%clk 0:00:04]} 68. Kb3 {[%clk 0:00:04]}  R2g3+ {[%clk 0:00:05]} 69. Kb4 {[%clk 0:00:04]}  R3g4 {[%clk 0:00:05]} 70. Rf6+ {[%clk 0:00:04]}  Kb7 {[%clk 0:00:06]} 71. Rf7+ {[%clk 0:00:05]}  Kb6 {[%clk 0:00:06]} 72. Rf6+ {[%clk 0:00:05]}  Kb7 {[%clk 0:00:07]} 73. Rf7+ {[%clk 0:00:06]}  Kb6 {[%clk 0:00:07]} 74. Rf6+ {[%clk 0:00:06]} 1/2-1/2


[Site "https://www.chess.com"]

[Event "Titled Tuesday Blitz January 25 2022"]
[White "Sapunov, Evgeny"]
[Black "Di Nicolantonio, Lucas"]
[WhiteFideId "4126661"]
[BlackFideId "680460"]
[WhiteElo "2470"]
[BlackElo "2381"]
[Result "1-0"]
[Round "03"]
[TimeControl "180+1"]
[Date "2022.01.26"]
[WhiteClock "0:01:16"]
[BlackClock "0:00:04"]

1. c4 {[%clk 0:03:00]}  g6 {[%clk 0:02:59]} 2. d4 {[%clk 0:02:59]}  Bg7 {[%clk 0:02:59]} 3. e4 {[%clk 0:03:00]}  d6 {[%clk 0:02:59]} 4. Nc3 {[%clk 0:03:00]}  e5 {[%clk 0:02:59]} 5. Nge2 {[%clk 0:03:00]}  Nc6 {[%clk 0:02:59]} 6. Be3 {[%clk 0:03:00]}  Nh6 {[%clk 0:02:58]} 7. f3 {[%clk 0:03:00]}  f5 {[%clk 0:02:58]} 8. Qd2 {[%clk 0:03:00]}  Nf7 {[%clk 0:02:58]} 9. O-O-O {[%clk 0:02:59]}  O-O {[%clk 0:02:10]} 10. h4 {[%clk 0:02:58]}  f4 {[%clk 0:01:37]} 11. Bf2 {[%clk 0:02:58]}  exd4 {[%clk 0:01:32]} 12. Nxd4 {[%clk 0:02:57]}  Nfe5 {[%clk 0:01:30]} 13. Kb1 {[%clk 0:02:41]}  Bd7 {[%clk 0:01:27]} 14. Nd5 {[%clk 0:02:35]}  Bh6 {[%clk 0:01:00]} 15. Nb5 {[%clk 0:02:33]}  Rc8 {[%clk 0:00:56]} 16. c5 {[%clk 0:02:30]}  a6 {[%clk 0:00:52]} 17. Nbc3 {[%clk 0:02:24]}  Be6 {[%clk 0:00:47]} 18. Be2 {[%clk 0:02:14]}  Na5 {[%clk 0:00:41]} 19. Qc2 {[%clk 0:02:05]}  Bg7 {[%clk 0:00:35]} 20. Qa4 {[%clk 0:02:00]}  Nac6 {[%clk 0:00:32]} 21. cxd6 {[%clk 0:01:58]}  cxd6 {[%clk 0:00:32]} 22. Nb6 {[%clk 0:01:54]}  Rc7 {[%clk 0:00:27]} 23. Rd2 {[%clk 0:01:53]}  Nd7 {[%clk 0:00:11]} 24. Ncd5 {[%clk 0:01:50]}  Be5 {[%clk 0:00:09]} 25. Rhd1 {[%clk 0:01:49]}  Nc5 {[%clk 0:00:03]} 26. Qa3 {[%clk 0:01:48]}  Rcf7 {[%clk 0:00:02]} 27. Nc4 {[%clk 0:01:32]}  Qe8 {[%clk 0:00:03]} 28. Nxd6 {[%clk 0:01:28]}  Bxd6 {[%clk 0:00:03]} 29. Bxc5 {[%clk 0:01:29]}  Bxc5 {[%clk 0:00:03]} 30. Qxc5 {[%clk 0:01:29]}  Bxd5 {[%clk 0:00:04]} 31. Rxd5 {[%clk 0:01:27]}  Kh8 {[%clk 0:00:04]} 32. Qc3+ {[%clk 0:01:26]}  Kg8 {[%clk 0:00:03]} 33. Bc4 {[%clk 0:01:26]}  Ne7 {[%clk 0:00:01]} 34. Rd7 {[%clk 0:01:23]}  h5 {[%clk 0:00:01]} 35. Qf6 {[%clk 0:01:21]}  Kh7 {[%clk 0:00:01]} 36. Bxf7 {[%clk 0:01:19]}  Rxf7 {[%clk 0:00:02]} 37. Qe5 {[%clk 0:01:19]}  Qf8 {[%clk 0:00:02]} 38. Rxb7 {[%clk 0:01:18]}  Nc6 {[%clk 0:00:02]} 39. Rxf7+ {[%clk 0:01:16]}  Qxf7 {[%clk 0:00:03]} 40. Qd5 {[%clk 0:01:16]}  Nb4 {[%clk 0:00:04]} 41. Qxf7+ {[%clk 0:01:16]} 1-0


[Site "https://www.chess.com"]

[Event "Titled Tuesday Blitz January 25 2022"]
[White "Sarana, Alexey"]
[Black "Stribuk, Artiom"]
[WhiteFideId "24133795"]
[BlackFideId "13515659"]
[WhiteElo "2665"]
[BlackElo "2224"]
[Result "0-1"]
[Round "03"]
[TimeControl "180+1"]
[Date "2022.01.26"]
[WhiteClock "0:00:06"]
[BlackClock "0:00:06"]

1. d4 {[%clk 0:03:00]}  Nf6 {[%clk 0:02:54]} 2. c4 {[%clk 0:03:01]}  g6 {[%clk 0:02:54]} 3. Nc3 {[%clk 0:03:01]}  d5 {[%clk 0:02:55]} 4. cxd5 {[%clk 0:03:02]}  Nxd5 {[%clk 0:02:56]} 5. e4 {[%clk 0:03:02]}  Nxc3 {[%clk 0:02:56]} 6. bxc3 {[%clk 0:03:03]}  Bg7 {[%clk 0:02:57]} 7. Be3 {[%clk 0:03:03]}  c5 {[%clk 0:02:57]} 8. Nf3 {[%clk 0:03:04]}  Qa5 {[%clk 0:02:57]} 9. Qd2 {[%clk 0:03:04]}  Nc6 {[%clk 0:02:56]} 10. Rb1 {[%clk 0:02:59]}  a6 {[%clk 0:02:38]} 11. Rc1 {[%clk 0:02:59]}  cxd4 {[%clk 0:02:39]} 12. cxd4 {[%clk 0:03:00]}  Qxd2+ {[%clk 0:02:39]} 13. Kxd2 {[%clk 0:03:00]}  O-O {[%clk 0:02:40]} 14. h4 {[%clk 0:02:58]}  Rd8 {[%clk 0:02:39]} 15. d5 {[%clk 0:02:52]}  e6 {[%clk 0:02:14]} 16. Bc4 {[%clk 0:01:58]}  exd5 {[%clk 0:01:41]} 17. exd5 {[%clk 0:01:34]}  Be6 {[%clk 0:01:41]} 18. h5 {[%clk 0:01:13]}  Bxd5 {[%clk 0:01:40]} 19. Ke2 {[%clk 0:01:13]}  Bb2 {[%clk 0:01:11]} 20. hxg6 {[%clk 0:00:47]}  Bxc1 {[%clk 0:00:45]} 21. gxh7+ {[%clk 0:00:46]}  Kh8 {[%clk 0:00:45]} 22. Rxc1 {[%clk 0:00:36]}  Bxc4+ {[%clk 0:00:44]} 23. Rxc4 {[%clk 0:00:36]}  Rd5 {[%clk 0:00:35]} 24. Ng5 {[%clk 0:00:32]}  f6 {[%clk 0:00:24]} 25. Ne6 {[%clk 0:00:27]}  Re5 {[%clk 0:00:21]} 26. Nc5 {[%clk 0:00:23]}  Na5 {[%clk 0:00:12]} 27. Rf4 {[%clk 0:00:22]}  Rc8 {[%clk 0:00:10]} 28. Nd7 {[%clk 0:00:19]}  Re6 {[%clk 0:00:07]} 29. Rxf6 {[%clk 0:00:12]}  Re7 {[%clk 0:00:05]} 30. Nb6 {[%clk 0:00:12]}  Rc2+ {[%clk 0:00:06]} 31. Kd3 {[%clk 0:00:12]}  Rxa2 {[%clk 0:00:06]} 32. Bd4 {[%clk 0:00:12]}  Kxh7 {[%clk 0:00:06]} 33. Nd5 {[%clk 0:00:13]}  Rd7 {[%clk 0:00:05]} 34. Rf5 {[%clk 0:00:12]}  Ra3+ {[%clk 0:00:05]} 35. Ke4 {[%clk 0:00:12]}  Rd6 {[%clk 0:00:04]} 36. Rf7+ {[%clk 0:00:06]}  Kg6 {[%clk 0:00:04]} 37. Rg7+ {[%clk 0:00:06]}  Kh6 {[%clk 0:00:04]} 38. Rc7 {[%clk 0:00:05]}  Ra4 {[%clk 0:00:04]} 39. f4 {[%clk 0:00:02]}  Nc6 {[%clk 0:00:04]} 40. Kf3 {[%clk 0:00:02]}  Rxd4 {[%clk 0:00:05]} 41. Kg4 {[%clk 0:00:02]}  R4xd5 {[%clk 0:00:05]} 42. Rxb7 {[%clk 0:00:03]}  Rg6+ {[%clk 0:00:05]} 43. Kf3 {[%clk 0:00:03]}  Rd3+ {[%clk 0:00:05]} 44. Ke4 {[%clk 0:00:04]}  Rdg3 {[%clk 0:00:05]} 45. f5 {[%clk 0:00:04]}  Rf6 {[%clk 0:00:06]} 46. Kf4 {[%clk 0:00:03]}  Rxg2 {[%clk 0:00:05]} 47. Rb1 {[%clk 0:00:04]}  Rg5 {[%clk 0:00:05]} 48. Rh1+ {[%clk 0:00:03]}  Rh5 {[%clk 0:00:05]} 49. Rg1 {[%clk 0:00:04]}  Rhxf5+ {[%clk 0:00:06]} 50. Ke4 {[%clk 0:00:05]}  Re5+ {[%clk 0:00:06]} 51. Kd3 {[%clk 0:00:05]}  Rg5 {[%clk 0:00:05]} 52. Kc4 {[%clk 0:00:06]}  Rxg1 {[%clk 0:00:05]} 53. Kd5 {[%clk 0:00:06]}  Rg5+ {[%clk 0:00:06]} 0-1


[Site "https://www.chess.com"]

[Event "Titled Tuesday Blitz January 25 2022"]
[White "Seletsky, Grigory"]
[Black "De Silva, L M S T"]
[WhiteFideId "14112191"]
[BlackFideId "9953698"]
[WhiteElo "2492"]
[BlackElo "1631"]
[Result "1/2-1/2"]
[Round "03"]
[TimeControl "180+1"]
[Date "2022.01.26"]
[WhiteClock "0:01:05"]
[BlackClock "0:01:30"]

1. d4 {[%clk 0:02:59]}  Nf6 {[%clk 0:03:00]} 2. c3 {[%clk 0:02:58]}  e6 {[%clk 0:03:00]} 3. Bf4 {[%clk 0:02:58]}  b6 {[%clk 0:03:00]} 4. e3 {[%clk 0:02:58]}  Bb7 {[%clk 0:03:00]} 5. h3 {[%clk 0:02:59]}  c5 {[%clk 0:03:00]} 6. Nf3 {[%clk 0:02:59]}  Nc6 {[%clk 0:03:00]} 7. Nbd2 {[%clk 0:02:59]}  d5 {[%clk 0:03:01]} 8. Bd3 {[%clk 0:02:58]}  Bd6 {[%clk 0:03:01]} 9. Bxd6 {[%clk 0:02:56]}  Qxd6 {[%clk 0:03:02]} 10. O-O {[%clk 0:02:56]}  O-O {[%clk 0:03:01]} 11. Be2 {[%clk 0:02:47]}  Rad8 {[%clk 0:02:54]} 12. a3 {[%clk 0:02:45]}  e5 {[%clk 0:02:52]} 13. dxe5 {[%clk 0:02:44]}  Nxe5 {[%clk 0:02:53]} 14. Nxe5 {[%clk 0:02:45]}  Qxe5 {[%clk 0:02:54]} 15. Re1 {[%clk 0:02:41]}  Qe7 {[%clk 0:02:54]} 16. Qc2 {[%clk 0:02:36]}  Rd6 {[%clk 0:02:53]} 17. Rad1 {[%clk 0:02:35]}  Rfd8 {[%clk 0:02:50]} 18. Bf3 {[%clk 0:02:34]}  Ne4 {[%clk 0:02:48]} 19. Nxe4 {[%clk 0:02:32]}  dxe4 {[%clk 0:02:49]} 20. Rxd6 {[%clk 0:02:27]}  Rxd6 {[%clk 0:02:47]} 21. Be2 {[%clk 0:02:23]}  f5 {[%clk 0:02:41]} 22. Rd1 {[%clk 0:02:23]}  Qd8 {[%clk 0:02:39]} 23. Rxd6 {[%clk 0:02:21]}  Qxd6 {[%clk 0:02:40]} 24. Qd1 {[%clk 0:02:20]}  Qxd1+ {[%clk 0:02:40]} 25. Bxd1 {[%clk 0:02:20]}  Kf7 {[%clk 0:02:38]} 26. Bb3+ {[%clk 0:02:20]}  Kf6 {[%clk 0:02:39]} 27. h4 {[%clk 0:02:18]}  h6 {[%clk 0:02:36]} 28. g3 {[%clk 0:02:17]}  g5 {[%clk 0:02:36]} 29. hxg5+ {[%clk 0:02:17]}  hxg5 {[%clk 0:02:37]} 30. Kf1 {[%clk 0:02:17]}  Ke5 {[%clk 0:02:38]} 31. Ke2 {[%clk 0:02:17]}  Bd5 {[%clk 0:02:35]} 32. Bxd5 {[%clk 0:02:04]}  Kxd5 {[%clk 0:02:36]} 33. b3 {[%clk 0:02:04]}  b5 {[%clk 0:02:33]} 34. Kf1 {[%clk 0:02:01]}  a5 {[%clk 0:02:27]} 35. Ke2 {[%clk 0:02:01]}  a4 {[%clk 0:02:21]} 36. c4+ {[%clk 0:01:54]}  Kc6 {[%clk 0:01:50]} 37. bxa4 {[%clk 0:01:34]}  bxa4 {[%clk 0:01:46]} 38. f3 {[%clk 0:01:19]}  exf3+ {[%clk 0:01:36]} 39. Kxf3 {[%clk 0:01:17]}  Kd6 {[%clk 0:01:37]} 40. e4 {[%clk 0:01:10]}  Ke5 {[%clk 0:01:32]} 41. exf5 {[%clk 0:01:10]}  Kxf5 {[%clk 0:01:32]} 42. g4+ {[%clk 0:01:11]}  Ke5 {[%clk 0:01:31]} 43. Ke3 {[%clk 0:01:10]}  Kf6 {[%clk 0:01:31]} 44. Kf3 {[%clk 0:01:08]}  Ke7 {[%clk 0:01:30]} 45. Ke2 {[%clk 0:01:06]}  Kd7 {[%clk 0:01:30]} 46. Kd3 {[%clk 0:01:05]} 1/2-1/2


[Site "https://www.chess.com"]